{"text_format":"3","workbook":"xlsx","n_sheets":4,"sheets":["Mēneša budžeta kopsavilkums","Ienākumi","Personāla izdevumi","Saimnieciskās darbības izdevumi"],"not_rendered":{"charts":1,"defined_names":14},"read":"whole","date_system":"1900"}

{"sheet":"Mēneša budžeta kopsavilkums","index":0,"n_rows":17,"n_cols":5,"rows_kept":17,"merged":[[1,1,1,3],[1,4,1,5],[8,1,8,4]]}
[null,"UZŅĒMUMA NOSAUKUMS"]
[null,"MĒNEŠA BUDŽETS",null,null,"Datums"]
[]
[null,"BUDŽETA KOPSUMMAS","PROGNOZĒTIE","FAKTISKIE","STARPĪBA"]
[null,"Ienākumi",{"$f":"Ienākumi[[#Totals],[PROGNOZĒTIE]]","v":{"v":63300,"d":"63,300.00"}},{"$f":"Ienākumi[[#Totals],[FAKTISKIE]]","v":{"v":57450,"d":"57,450.00"}},{"$f":"Kopsummas[[#This Row],[FAKTISKIE]]-Kopsummas[[#This Row],[PROGNOZĒTIE]]","v":{"v":-5850,"d":"-5,850.00 "}}]
[null,"Izdevumi",{"$f":"SaimnieciskāsDarbībasIzdevumi[[#Totals],[PROGNOZĒTIE]]+PersonālaIzdevumi[[#Totals],[PROGNOZĒTIE]]","v":{"v":54500,"d":"54,500.00"}},{"$f":"SaimnieciskāsDarbībasIzdevumi[[#Totals],[FAKTISKIE]]+PersonālaIzdevumi[[#Totals],[FAKTISKIE]]","v":{"v":49630,"d":"49,630.00"}},{"$f":"Kopsummas[[#This Row],[FAKTISKIE]]-Kopsummas[[#This Row],[PROGNOZĒTIE]]","v":{"v":-4870,"d":"-4,870.00 "}}]
[null,"Bilance (ienākumi mīnus izdevumi)",{"$f":"C5-C6","v":{"v":8800,"d":"8,800.00"}},{"$f":"D5-D6","v":{"v":7820,"d":"7,820.00"}},{"$f":"Kopsummas[[#Totals],[FAKTISKIE]]-Kopsummas[[#Totals],[PROGNOZĒTIE]]","v":{"v":-980,"d":"-980.00 "}}]
[]
[null,"Šajā šūnā ir budžeta pārskata diagramma. Zemāk tabulā 5LielākieIzdevumi tiek automātiski atjaunināti 5 lielākie saimnieciskās darbības izdevumi."]
[null,"KĀDAI IR MANI 5 LIELĀKIE SAIMNIECISKĀS DARBĪBAS IZDEVUMI?"]
[null,"IZDEVUMI","SUMMA","% NO IZDEVUMIEM","15 % SAMAZINĀJUMS"]
[null,{"$f":"INDEX(SaimnieciskāsDarbībasIzdevumi[],MATCH(_5LielākieIzdevumi[[#This Row],[SUMMA]],SaimnieciskāsDarbībasIzdevumi[5 LIELĀKĀS SUMMAS],0),1)","v":"Apkope un remonts"},{"$f":"LARGE(SaimnieciskāsDarbībasIzdevumi[5 LIELĀKĀS SUMMAS],1)","v":{"v":4600.000014,"d":"4,600.00"}},{"$f":"_5LielākieIzdevumi[[#This Row],[SUMMA]]/$D$6","v":{"v":0.09268587576062866,"d":"9.3%"}},{"$f":"_5LielākieIzdevumi[[#This Row],[SUMMA]]*0.15","v":{"v":690.0000021,"d":"690.00"}}]
[null,{"$f":"INDEX(SaimnieciskāsDarbībasIzdevumi[],MATCH(_5LielākieIzdevumi[[#This Row],[SUMMA]],SaimnieciskāsDarbībasIzdevumi[5 LIELĀKĀS SUMMAS],0),1)","v":"Materiāli"},{"$f":"LARGE(SaimnieciskāsDarbībasIzdevumi[5 LIELĀKĀS SUMMAS],2)","v":{"v":4500.00002,"d":"4,500.00"}},{"$f":"_5LielākieIzdevumi[[#This Row],[SUMMA]]/$D$6","v":{"v":0.09067096554503326,"d":"9.1%"}},{"$f":"_5LielākieIzdevumi[[#This Row],[SUMMA]]*0.15","v":{"v":675.000003,"d":"675.00"}}]
[null,{"$f":"INDEX(SaimnieciskāsDarbībasIzdevumi[],MATCH(_5LielākieIzdevumi[[#This Row],[SUMMA]],SaimnieciskāsDarbībasIzdevumi[5 LIELĀKĀS SUMMAS],0),1)","v":"Īre vai hipotekārais kredīts"},{"$f":"LARGE(SaimnieciskāsDarbībasIzdevumi[5 LIELĀKĀS SUMMAS],3)","v":{"v":4500.000017,"d":"4,500.00"}},{"$f":"_5LielākieIzdevumi[[#This Row],[SUMMA]]/$D$6","v":{"v":0.09067096548458595,"d":"9.1%"}},{"$f":"_5LielākieIzdevumi[[#This Row],[SUMMA]]*0.15","v":{"v":675.00000255,"d":"675.00"}}]
[null,{"$f":"INDEX(SaimnieciskāsDarbībasIzdevumi[],MATCH(_5LielākieIzdevumi[[#This Row],[SUMMA]],SaimnieciskāsDarbībasIzdevumi[5 LIELĀKĀS SUMMAS],0),1)","v":"Nodokļi"},{"$f":"LARGE(SaimnieciskāsDarbībasIzdevumi[5 LIELĀKĀS SUMMAS],4)","v":{"v":3200.000021,"d":"3,200.00"}},{"$f":"_5LielākieIzdevumi[[#This Row],[SUMMA]]/$D$6","v":{"v":0.06447713119081201,"d":"6.4%"}},{"$f":"_5LielākieIzdevumi[[#This Row],[SUMMA]]*0.15","v":{"v":480.00000314999994,"d":"480.00"}}]
[null,{"$f":"INDEX(SaimnieciskāsDarbībasIzdevumi[],MATCH(_5LielākieIzdevumi[[#This Row],[SUMMA]],SaimnieciskāsDarbībasIzdevumi[5 LIELĀKĀS SUMMAS],0),1)","v":"Reklāma"},{"$f":"LARGE(SaimnieciskāsDarbībasIzdevumi[5 LIELĀKĀS SUMMAS],5)","v":{"v":2500.000005,"d":"2,500.00"}},{"$f":"_5LielākieIzdevumi[[#This Row],[SUMMA]]/$D$6","v":{"v":0.05037275851299617,"d":"5.0%"}},{"$f":"_5LielākieIzdevumi[[#This Row],[SUMMA]]*0.15","v":{"v":375.00000074999997,"d":"375.00"}}]
[null,"Kopsumma",{"$f":"SUBTOTAL(109,_5LielākieIzdevumi[SUMMA])","v":{"v":19300.000077000004,"d":"19,300.00"}},{"$f":"SUBTOTAL(109,_5LielākieIzdevumi[% NO IZDEVUMIEM])","v":{"v":0.388877696494056,"d":"38.9%"}},{"$f":"SUBTOTAL(109,_5LielākieIzdevumi[15 % SAMAZINĀJUMS])","v":{"v":2895.0000115499997,"d":"2,895.00"}}]

{"sheet":"Ienākumi","index":1,"n_rows":8,"n_cols":6,"rows_kept":8,"merged":[[1,1,1,3]]}
[null,{"$f":"UZŅĒMUMA_NOSAUKUMS","v":"UZŅĒMUMA NOSAUKUMS"}]
[null,{"$f":"BUDŽETS_Virsraksts","v":"MĒNEŠA BUDŽETS"}]
[]
[null,"IENĀKUMI","PROGNOZĒTIE","FAKTISKIE","5 LIELĀKĀS SUMMAS","STARPĪBA"]
[null,"Neto apgrozījums",{"v":60000,"d":"60,000.00"},{"v":54000,"d":"54,000.00"},{"$f":"Ienākumi[[#This Row],[FAKTISKIE]]+(10^-6)*ROW(Ienākumi[[#This Row],[FAKTISKIE]])","v":{"v":54000.000005,"d":"54,000.00"}},{"$f":"Ienākumi[[#This Row],[FAKTISKIE]]-Ienākumi[[#This Row],[PROGNOZĒTIE]]","v":{"v":-6000,"d":"-6,000.00 "}}]
[null,"Procentu ienākumi",{"v":3000,"d":"3,000.00"},{"v":3000,"d":"3,000.00"},{"$f":"Ienākumi[[#This Row],[FAKTISKIE]]+(10^-6)*ROW(Ienākumi[[#This Row],[FAKTISKIE]])","v":{"v":3000.000006,"d":"3,000.00"}},{"$f":"Ienākumi[[#This Row],[FAKTISKIE]]-Ienākumi[[#This Row],[PROGNOZĒTIE]]","v":{"v":0,"d":"0.00"}}]
[null,"Aktīvu pārdošana (peļņa/zaudējumi)",{"v":300,"d":"300.00"},{"v":450,"d":"450.00"},{"$f":"Ienākumi[[#This Row],[FAKTISKIE]]+(10^-6)*ROW(Ienākumi[[#This Row],[FAKTISKIE]])","v":{"v":450.000007,"d":"450.00"}},{"$f":"Ienākumi[[#This Row],[FAKTISKIE]]-Ienākumi[[#This Row],[PROGNOZĒTIE]]","v":{"v":150,"d":"150.00"}}]
[null,"Kopējie ienākumi",{"$f":"SUBTOTAL(109,Ienākumi[PROGNOZĒTIE])","v":{"v":63300,"d":"63,300.00"}},{"$f":"SUBTOTAL(109,Ienākumi[FAKTISKIE])","v":{"v":57450,"d":"57,450.00"}},null,{"$f":"SUBTOTAL(109,Ienākumi[STARPĪBA])","v":{"v":-5850,"d":"-5,850.00 "}}]

{"sheet":"Personāla izdevumi","index":2,"n_rows":8,"n_cols":6,"rows_kept":8,"merged":[[1,1,1,3]]}
[null,{"$f":"UZŅĒMUMA_NOSAUKUMS","v":"UZŅĒMUMA NOSAUKUMS"}]
[null,{"$f":"BUDŽETS_Virsraksts","v":"MĒNEŠA BUDŽETS"}]
[]
[null,"PERSONĀLA IZDEVUMI","PROGNOZĒTIE","FAKTISKIE","5 LIELĀKĀS SUMMAS","STARPĪBA"]
[null,"Alga",{"v":9500,"d":"9,500.00"},{"v":9600,"d":"9,600.00"},{"$f":"PersonālaIzdevumi[[#This Row],[FAKTISKIE]]+(10^-6)*ROW(PersonālaIzdevumi[[#This Row],[FAKTISKIE]])","v":{"v":9600.000005,"d":"9,600.00"}},{"$f":"PersonālaIzdevumi[[#This Row],[PROGNOZĒTIE]]-PersonālaIzdevumi[[#This Row],[FAKTISKIE]]","v":{"v":-100,"d":"-100.00 "}}]
[null,"Darbinieku ieguvumi",{"v":4000,"d":"4,000.00"},{"v":0,"d":"0.00"},{"$f":"PersonālaIzdevumi[[#This Row],[FAKTISKIE]]+(10^-6)*ROW(PersonālaIzdevumi[[#This Row],[FAKTISKIE]])","v":{"v":6e-06,"d":"0.00"}},{"$f":"PersonālaIzdevumi[[#This Row],[PROGNOZĒTIE]]-PersonālaIzdevumi[[#This Row],[FAKTISKIE]]","v":{"v":4000,"d":"4,000.00"}}]
[null,"Komisija",{"v":5000,"d":"5,000.00"},{"v":4500,"d":"4,500.00"},{"$f":"PersonālaIzdevumi[[#This Row],[FAKTISKIE]]+(10^-6)*ROW(PersonālaIzdevumi[[#This Row],[FAKTISKIE]])","v":{"v":4500.000007,"d":"4,500.00"}},{"$f":"PersonālaIzdevumi[[#This Row],[PROGNOZĒTIE]]-PersonālaIzdevumi[[#This Row],[FAKTISKIE]]","v":{"v":500,"d":"500.00"}}]
[null,"Personāla kopējie izdevumi",{"$f":"SUBTOTAL(109,PersonālaIzdevumi[PROGNOZĒTIE])","v":{"v":18500,"d":"18,500.00"}},{"$f":"SUBTOTAL(109,PersonālaIzdevumi[FAKTISKIE])","v":{"v":14100,"d":"14,100.00"}},null,{"$f":"SUBTOTAL(109,PersonālaIzdevumi[STARPĪBA])","v":{"v":4400,"d":"4,400.00"}}]

{"sheet":"Saimnieciskās darbības izdevumi","index":3,"n_rows":25,"n_cols":6,"rows_kept":25,"merged":[[1,1,1,3]]}
[null,{"$f":"UZŅĒMUMA_NOSAUKUMS","v":"UZŅĒMUMA NOSAUKUMS"}]
[null,{"$f":"BUDŽETS_Virsraksts","v":"MĒNEŠA BUDŽETS"}]
[]
[null,"SAIMNIECISKĀS DARBĪBAS IZDEVUMI","PROGNOZĒTIE","FAKTISKIE","5 LIELĀKĀS SUMMAS","STARPĪBA"]
[null,"Reklāma",{"v":3000,"d":"3,000.00"},{"v":2500,"d":"2,500.00"},{"$f":"SaimnieciskāsDarbībasIzdevumi[[#This Row],[FAKTISKIE]]+(10^-6)*ROW(SaimnieciskāsDarbībasIzdevumi[[#This Row],[FAKTISKIE]])","v":{"v":2500.000005,"d":"2,500.00"}},{"$f":"SaimnieciskāsDarbībasIzdevumi[[#This Row],[PROGNOZĒTIE]]-SaimnieciskāsDarbībasIzdevumi[[#This Row],[FAKTISKIE]]","v":{"v":500,"d":"500.00"}}]
[null,"Bezcerīgie parādi",{"v":2000,"d":"2,000.00"},{"v":2000,"d":"2,000.00"},{"$f":"SaimnieciskāsDarbībasIzdevumi[[#This Row],[FAKTISKIE]]+(10^-6)*ROW(SaimnieciskāsDarbībasIzdevumi[[#This Row],[FAKTISKIE]])","v":{"v":2000.000006,"d":"2,000.00"}},{"$f":"SaimnieciskāsDarbībasIzdevumi[[#This Row],[PROGNOZĒTIE]]-SaimnieciskāsDarbībasIzdevumi[[#This Row],[FAKTISKIE]]","v":{"v":0,"d":"0.00"}}]
[null,"Termiņatlaides",{"v":1500,"d":"1,500.00"},{"v":2175,"d":"2,175.00"},{"$f":"SaimnieciskāsDarbībasIzdevumi[[#This Row],[FAKTISKIE]]+(10^-6)*ROW(SaimnieciskāsDarbībasIzdevumi[[#This Row],[FAKTISKIE]])","v":{"v":2175.000007,"d":"2,175.00"}},{"$f":"SaimnieciskāsDarbībasIzdevumi[[#This Row],[PROGNOZĒTIE]]-SaimnieciskāsDarbībasIzdevumi[[#This Row],[FAKTISKIE]]","v":{"v":-675,"d":"-675.00 "}}]
[null,"Piegādes izmaksas",{"v":2000,"d":"2,000.00"},{"v":1500,"d":"1,500.00"},{"$f":"SaimnieciskāsDarbībasIzdevumi[[#This Row],[FAKTISKIE]]+(10^-6)*ROW(SaimnieciskāsDarbībasIzdevumi[[#This Row],[FAKTISKIE]])","v":{"v":1500.000008,"d":"1,500.00"}},{"$f":"SaimnieciskāsDarbībasIzdevumi[[#This Row],[PROGNOZĒTIE]]-SaimnieciskāsDarbībasIzdevumi[[#This Row],[FAKTISKIE]]","v":{"v":500,"d":"500.00"}}]
[null,"Nolietojums",{"v":1000,"d":"1,000.00"},{"v":1000,"d":"1,000.00"},{"$f":"SaimnieciskāsDarbībasIzdevumi[[#This Row],[FAKTISKIE]]+(10^-6)*ROW(SaimnieciskāsDarbībasIzdevumi[[#This Row],[FAKTISKIE]])","v":{"v":1000.000009,"d":"1,000.00"}},{"$f":"SaimnieciskāsDarbībasIzdevumi[[#This Row],[PROGNOZĒTIE]]-SaimnieciskāsDarbībasIzdevumi[[#This Row],[FAKTISKIE]]","v":{"v":0,"d":"0.00"}}]
[null,"Veicamie maksājumi un abonementi",{"v":500,"d":"500.00"},{"v":525,"d":"525.00"},{"$f":"SaimnieciskāsDarbībasIzdevumi[[#This Row],[FAKTISKIE]]+(10^-6)*ROW(SaimnieciskāsDarbībasIzdevumi[[#This Row],[FAKTISKIE]])","v":{"v":525.00001,"d":"525.00"}},{"$f":"SaimnieciskāsDarbībasIzdevumi[[#This Row],[PROGNOZĒTIE]]-SaimnieciskāsDarbībasIzdevumi[[#This Row],[FAKTISKIE]]","v":{"v":-25,"d":"-25.00 "}}]
[null,"Apdrošināšana",{"v":1300,"d":"1,300.00"},{"v":1275,"d":"1,275.00"},{"$f":"SaimnieciskāsDarbībasIzdevumi[[#This Row],[FAKTISKIE]]+(10^-6)*ROW(SaimnieciskāsDarbībasIzdevumi[[#This Row],[FAKTISKIE]])","v":{"v":1275.000011,"d":"1,275.00"}},{"$f":"SaimnieciskāsDarbībasIzdevumi[[#This Row],[PROGNOZĒTIE]]-SaimnieciskāsDarbībasIzdevumi[[#This Row],[FAKTISKIE]]","v":{"v":25,"d":"25.00"}}]
[null,"Procenti",{"v":2000,"d":"2,000.00"},{"v":2200,"d":"2,200.00"},{"$f":"SaimnieciskāsDarbībasIzdevumi[[#This Row],[FAKTISKIE]]+(10^-6)*ROW(SaimnieciskāsDarbībasIzdevumi[[#This Row],[FAKTISKIE]])","v":{"v":2200.000012,"d":"2,200.00"}},{"$f":"SaimnieciskāsDarbībasIzdevumi[[#This Row],[PROGNOZĒTIE]]-SaimnieciskāsDarbībasIzdevumi[[#This Row],[FAKTISKIE]]","v":{"v":-200,"d":"-200.00 "}}]
[null,"Juridiskie pakalpojumi un auditēšana",{"v":1000,"d":"1,000.00"},{"v":800,"d":"800.00"},{"$f":"SaimnieciskāsDarbībasIzdevumi[[#This Row],[FAKTISKIE]]+(10^-6)*ROW(SaimnieciskāsDarbībasIzdevumi[[#This Row],[FAKTISKIE]])","v":{"v":800.000013,"d":"800.00"}},{"$f":"SaimnieciskāsDarbībasIzdevumi[[#This Row],[PROGNOZĒTIE]]-SaimnieciskāsDarbībasIzdevumi[[#This Row],[FAKTISKIE]]","v":{"v":200,"d":"200.00"}}]
[null,"Apkope un remonts",{"v":4500,"d":"4,500.00"},{"v":4600,"d":"4,600.00"},{"$f":"SaimnieciskāsDarbībasIzdevumi[[#This Row],[FAKTISKIE]]+(10^-6)*ROW(SaimnieciskāsDarbībasIzdevumi[[#This Row],[FAKTISKIE]])","v":{"v":4600.000014,"d":"4,600.00"}},{"$f":"SaimnieciskāsDarbībasIzdevumi[[#This Row],[PROGNOZĒTIE]]-SaimnieciskāsDarbībasIzdevumi[[#This Row],[FAKTISKIE]]","v":{"v":-100,"d":"-100.00 "}}]
[null,"Biroja piederumi",{"v":800,"d":"800.00"},{"v":750,"d":"750.00"},{"$f":"SaimnieciskāsDarbībasIzdevumi[[#This Row],[FAKTISKIE]]+(10^-6)*ROW(SaimnieciskāsDarbībasIzdevumi[[#This Row],[FAKTISKIE]])","v":{"v":750.000015,"d":"750.00"}},{"$f":"SaimnieciskāsDarbībasIzdevumi[[#This Row],[PROGNOZĒTIE]]-SaimnieciskāsDarbībasIzdevumi[[#This Row],[FAKTISKIE]]","v":{"v":50,"d":"50.00"}}]
[null,"Pasta izdevumi",{"v":400,"d":"400.00"},{"v":350,"d":"350.00"},{"$f":"SaimnieciskāsDarbībasIzdevumi[[#This Row],[FAKTISKIE]]+(10^-6)*ROW(SaimnieciskāsDarbībasIzdevumi[[#This Row],[FAKTISKIE]])","v":{"v":350.000016,"d":"350.00"}},{"$f":"SaimnieciskāsDarbībasIzdevumi[[#This Row],[PROGNOZĒTIE]]-SaimnieciskāsDarbībasIzdevumi[[#This Row],[FAKTISKIE]]","v":{"v":50,"d":"50.00"}}]
[null,"Īre vai hipotekārais kredīts",{"v":4100,"d":"4,100.00"},{"v":4500,"d":"4,500.00"},{"$f":"SaimnieciskāsDarbībasIzdevumi[[#This Row],[FAKTISKIE]]+(10^-6)*ROW(SaimnieciskāsDarbībasIzdevumi[[#This Row],[FAKTISKIE]])","v":{"v":4500.000017,"d":"4,500.00"}},{"$f":"SaimnieciskāsDarbībasIzdevumi[[#This Row],[PROGNOZĒTIE]]-SaimnieciskāsDarbībasIzdevumi[[#This Row],[FAKTISKIE]]","v":{"v":-400,"d":"-400.00 "}}]
[null,"Pārdošanas izmaksas",{"v":350,"d":"350.00"},{"v":400,"d":"400.00"},{"$f":"SaimnieciskāsDarbībasIzdevumi[[#This Row],[FAKTISKIE]]+(10^-6)*ROW(SaimnieciskāsDarbībasIzdevumi[[#This Row],[FAKTISKIE]])","v":{"v":400.000018,"d":"400.00"}},{"$f":"SaimnieciskāsDarbībasIzdevumi[[#This Row],[PROGNOZĒTIE]]-SaimnieciskāsDarbībasIzdevumi[[#This Row],[FAKTISKIE]]","v":{"v":-50,"d":"-50.00 "}}]
[null,"Sūtīšana un piegāde",{"v":900,"d":"900.00"},{"v":840,"d":"840.00"},{"$f":"SaimnieciskāsDarbībasIzdevumi[[#This Row],[FAKTISKIE]]+(10^-6)*ROW(SaimnieciskāsDarbībasIzdevumi[[#This Row],[FAKTISKIE]])","v":{"v":840.000019,"d":"840.00"}},{"$f":"SaimnieciskāsDarbībasIzdevumi[[#This Row],[PROGNOZĒTIE]]-SaimnieciskāsDarbībasIzdevumi[[#This Row],[FAKTISKIE]]","v":{"v":60,"d":"60.00"}}]
[null,"Materiāli",{"v":5000,"d":"5,000.00"},{"v":4500,"d":"4,500.00"},{"$f":"SaimnieciskāsDarbībasIzdevumi[[#This Row],[FAKTISKIE]]+(10^-6)*ROW(SaimnieciskāsDarbībasIzdevumi[[#This Row],[FAKTISKIE]])","v":{"v":4500.00002,"d":"4,500.00"}},{"$f":"SaimnieciskāsDarbībasIzdevumi[[#This Row],[PROGNOZĒTIE]]-SaimnieciskāsDarbībasIzdevumi[[#This Row],[FAKTISKIE]]","v":{"v":500,"d":"500.00"}}]
[null,"Nodokļi",{"v":3000,"d":"3,000.00"},{"v":3200,"d":"3,200.00"},{"$f":"SaimnieciskāsDarbībasIzdevumi[[#This Row],[FAKTISKIE]]+(10^-6)*ROW(SaimnieciskāsDarbībasIzdevumi[[#This Row],[FAKTISKIE]])","v":{"v":3200.000021,"d":"3,200.00"}},{"$f":"SaimnieciskāsDarbībasIzdevumi[[#This Row],[PROGNOZĒTIE]]-SaimnieciskāsDarbībasIzdevumi[[#This Row],[FAKTISKIE]]","v":{"v":-200,"d":"-200.00 "}}]
[null,"Tālrunis",{"v":250,"d":"250.00"},{"v":280,"d":"280.00"},{"$f":"SaimnieciskāsDarbībasIzdevumi[[#This Row],[FAKTISKIE]]+(10^-6)*ROW(SaimnieciskāsDarbībasIzdevumi[[#This Row],[FAKTISKIE]])","v":{"v":280.000022,"d":"280.00"}},{"$f":"SaimnieciskāsDarbībasIzdevumi[[#This Row],[PROGNOZĒTIE]]-SaimnieciskāsDarbībasIzdevumi[[#This Row],[FAKTISKIE]]","v":{"v":-30,"d":"-30.00 "}}]
[null,"Komunālie pakalpojumi",{"v":1400,"d":"1,400.00"},{"v":1385,"d":"1,385.00"},{"$f":"SaimnieciskāsDarbībasIzdevumi[[#This Row],[FAKTISKIE]]+(10^-6)*ROW(SaimnieciskāsDarbībasIzdevumi[[#This Row],[FAKTISKIE]])","v":{"v":1385.000023,"d":"1,385.00"}},{"$f":"SaimnieciskāsDarbībasIzdevumi[[#This Row],[PROGNOZĒTIE]]-SaimnieciskāsDarbībasIzdevumi[[#This Row],[FAKTISKIE]]","v":{"v":15,"d":"15.00"}}]
[null,"Citi",{"v":1000,"d":"1,000.00"},{"v":750,"d":"750.00"},{"$f":"SaimnieciskāsDarbībasIzdevumi[[#This Row],[FAKTISKIE]]+(10^-6)*ROW(SaimnieciskāsDarbībasIzdevumi[[#This Row],[FAKTISKIE]])","v":{"v":750.000024,"d":"750.00"}},{"$f":"SaimnieciskāsDarbībasIzdevumi[[#This Row],[PROGNOZĒTIE]]-SaimnieciskāsDarbībasIzdevumi[[#This Row],[FAKTISKIE]]","v":{"v":250,"d":"250.00"}}]
[null,"Saimnieciskās darbības izdevumu kopsumma",{"$f":"SUBTOTAL(109,SaimnieciskāsDarbībasIzdevumi[PROGNOZĒTIE])","v":{"v":36000,"d":"36,000.00"}},{"$f":"SUBTOTAL(109,SaimnieciskāsDarbībasIzdevumi[FAKTISKIE])","v":{"v":35530,"d":"35,530.00"}},null,{"$f":"SUBTOTAL(109,SaimnieciskāsDarbībasIzdevumi[STARPĪBA])","v":{"v":470,"d":"470.00"}}]